[Event "Titled Tuesday Blitz February 15 Late 2022"]
[White "Golubenko, Valentina"]
[Black "Khater, Sherif"]
[WhiteFideId "4501993"]
[BlackFideId "2034280"]
[WhiteElo "2164"]
[BlackElo "2543"]
[Result "0-1"]
[Round "02"]
[TimeControl "180+1"]
[Date "2022.02.16"]
[WhiteClock "0:00:04"]
[BlackClock "0:00:20"]

1. d4 {[%clk 0:03:00]}  Nf6 {[%clk 0:02:59]} 2. g3 {[%clk 0:03:00]}  e6 {[%clk 0:02:59]} 3. Bg2 {[%clk 0:03:00]}  c5 {[%clk 0:02:59]} 4. Nf3 {[%clk 0:02:59]}  cxd4 {[%clk 0:02:59]} 5. Nxd4 {[%clk 0:02:59]}  Nc6 {[%clk 0:03:00]} 6. Nxc6 {[%clk 0:02:59]}  bxc6 {[%clk 0:03:00]} 7. c4 {[%clk 0:02:59]}  Be7 {[%clk 0:03:00]} 8. O-O {[%clk 0:02:59]}  O-O {[%clk 0:03:01]} 9. Nc3 {[%clk 0:03:00]}  h6 {[%clk 0:03:00]} 10. e4 {[%clk 0:02:59]}  Qc7 {[%clk 0:02:58]} 11. Bf4 {[%clk 0:02:58]}  e5 {[%clk 0:02:58]} 12. Be3 {[%clk 0:02:58]}  d6 {[%clk 0:02:58]} 13. Rc1 {[%clk 0:02:52]}  Be6 {[%clk 0:02:53]} 14. Nd5 {[%clk 0:02:42]}  Bxd5 {[%clk 0:02:51]} 15. cxd5 {[%clk 0:02:42]}  c5 {[%clk 0:02:51]} 16. b4 {[%clk 0:02:40]}  Nd7 {[%clk 0:02:47]} 17. bxc5 {[%clk 0:02:37]}  Nxc5 {[%clk 0:02:45]} 18. f4 {[%clk 0:02:30]}  f6 {[%clk 0:02:35]} 19. Qd2 {[%clk 0:02:22]}  Rab8 {[%clk 0:02:33]} 20. Rfd1 {[%clk 0:02:20]}  Rfd8 {[%clk 0:02:34]} 21. fxe5 {[%clk 0:02:06]}  fxe5 {[%clk 0:02:32]} 22. Rf1 {[%clk 0:02:06]}  a5 {[%clk 0:02:21]} 23. Rf5 {[%clk 0:01:55]}  a4 {[%clk 0:02:18]} 24. Rcf1 {[%clk 0:01:53]}  Rf8 {[%clk 0:02:14]} 25. Bxh6 {[%clk 0:01:53]}  Rxf5 {[%clk 0:02:10]} 26. exf5 {[%clk 0:01:34]}  gxh6 {[%clk 0:01:49]} 27. f6 {[%clk 0:01:29]}  Bf8 {[%clk 0:01:47]} 28. f7+ {[%clk 0:01:26]}  Kh8 {[%clk 0:01:48]} 29. g4 {[%clk 0:01:20]}  Bg7 {[%clk 0:01:42]} 30. g5 {[%clk 0:01:20]}  Kh7 {[%clk 0:01:15]} 31. Qc2+ {[%clk 0:01:15]}  e4 {[%clk 0:01:15]} 32. Bxe4+ {[%clk 0:01:14]}  Kh8 {[%clk 0:01:15]} 33. Bg2 {[%clk 0:01:06]}  Qe7 {[%clk 0:00:51]} 34. Qg6 {[%clk 0:00:41]}  Qe3+ {[%clk 0:00:42]} 35. Kh1 {[%clk 0:00:41]}  Nd3 {[%clk 0:00:42]} 36. Be4 {[%clk 0:00:13]}  Nf2+ {[%clk 0:00:37]} 37. Rxf2 {[%clk 0:00:14]}  Qc1+ {[%clk 0:00:30]} 38. Kg2 {[%clk 0:00:13]}  Qxg5+ {[%clk 0:00:30]} 39. Qxg5 {[%clk 0:00:12]}  hxg5 {[%clk 0:00:31]} 40. Kg3 {[%clk 0:00:10]}  Be5+ {[%clk 0:00:29]} 41. Kg4 {[%clk 0:00:10]}  Kg7 {[%clk 0:00:30]} 42. Kxg5 {[%clk 0:00:11]}  Rf8 {[%clk 0:00:28]} 43. Bg6 {[%clk 0:00:09]}  a3 {[%clk 0:00:28]} 44. h4 {[%clk 0:00:08]}  Bd4 {[%clk 0:00:23]} 45. Rf3 {[%clk 0:00:08]}  Bb2 {[%clk 0:00:21]} 46. h5 {[%clk 0:00:08]}  Kh8 {[%clk 0:00:19]} 47. Kf5 {[%clk 0:00:06]}  Kg7 {[%clk 0:00:20]} 48. Ke6 {[%clk 0:00:06]}  Be5 {[%clk 0:00:21]} 49. Rh3 {[%clk 0:00:05]}  Ra8 {[%clk 0:00:19]} 50. h6+ {[%clk 0:00:05]}  Kxg6 {[%clk 0:00:20]} 51. h7 {[%clk 0:00:05]}  Kg7 {[%clk 0:00:20]} 52. Rg3+ {[%clk 0:00:04]}  Kxh7 {[%clk 0:00:20]} 53. Ke7 {[%clk 0:00:05]}  Bg7 {[%clk 0:00:18]} 54. Kxd6 {[%clk 0:00:05]}  Rf8 {[%clk 0:00:15]} 55. Ke7 {[%clk 0:00:05]}  Rb8 {[%clk 0:00:15]} 56. d6 {[%clk 0:00:04]}  Bf8+ {[%clk 0:00:15]} 57. Ke6 {[%clk 0:00:04]}  Rb6 {[%clk 0:00:16]} 58. Rh3+ {[%clk 0:00:04]}  Kg6 {[%clk 0:00:16]} 59. Rg3+ {[%clk 0:00:04]}  Kh5 {[%clk 0:00:16]} 60. Rd3 {[%clk 0:00:04]}  Kg6 {[%clk 0:00:16]} 61. Rg3+ {[%clk 0:00:04]}  Kh5 {[%clk 0:00:17]} 62. Rd3 {[%clk 0:00:04]}  Kg4 {[%clk 0:00:17]} 63. Kd7 {[%clk 0:00:04]}  Bg7 {[%clk 0:00:16]} 64. Ke8 {[%clk 0:00:04]}  Rb8+ {[%clk 0:00:16]} 65. Ke7 {[%clk 0:00:04]}  Bf8+ {[%clk 0:00:16]} 66. Ke6 {[%clk 0:00:05]}  Kf4 {[%clk 0:00:15]} 67. d7 {[%clk 0:00:05]}  Ke4 {[%clk 0:00:15]} 68. Rd1 {[%clk 0:00:03]}  Rd8 {[%clk 0:00:14]} 69. Kf6 {[%clk 0:00:03]}  Ke3 {[%clk 0:00:14]} 70. Re1+ {[%clk 0:00:03]}  Kd2 {[%clk 0:00:14]} 71. Re8 {[%clk 0:00:03]}  Rxd7 {[%clk 0:00:14]} 72. Rxf8 {[%clk 0:00:04]}  Kd1 {[%clk 0:00:13]} 73. Rb8 {[%clk 0:00:04]}  Rd2 {[%clk 0:00:13]} 74. f8=Q {[%clk 0:00:04]}  Rf2+ {[%clk 0:00:14]} 75. Ke7 {[%clk 0:00:04]}  Re2+ {[%clk 0:00:15]} 76. Kf7 {[%clk 0:00:04]}  Rxa2 {[%clk 0:00:15]} 77. Ke6 {[%clk 0:00:05]}  Re2+ {[%clk 0:00:15]} 78. Kd5 {[%clk 0:00:05]}  Rd2+ {[%clk 0:00:16]} 79. Kc4 {[%clk 0:00:05]}  Kc1 {[%clk 0:00:17]} 80. Kb4 {[%clk 0:00:05]}  Rc2 {[%clk 0:00:18]} 81. Ka4 {[%clk 0:00:06]}  a2 {[%clk 0:00:18]} 82. Qf3 {[%clk 0:00:06]}  a1=Q+ {[%clk 0:00:18]} 83. Kb4 {[%clk 0:00:05]}  Rb2+ {[%clk 0:00:18]} 84. Kc4 {[%clk 0:00:05]}  Qa4+ {[%clk 0:00:18]} 85. Kd3 {[%clk 0:00:05]}  Rb3+ {[%clk 0:00:19]} 86. Ke2 {[%clk 0:00:05]}  Rxf3 {[%clk 0:00:19]} 87. Kxf3 {[%clk 0:00:05]}  Qc6+ {[%clk 0:00:19]} 88. Ke3 {[%clk 0:00:04]}  Qc5+ {[%clk 0:00:19]} 89. Ke2 {[%clk 0:00:04]}  Qe5+ {[%clk 0:00:19]} 90. Kd3 {[%clk 0:00:04]}  Qxb8 {[%clk 0:00:20]} 0-1


[Site "https://www.chess.com"]

[Event "Titled Tuesday Blitz February 15 Late 2022"]
[White "Grigorov, Grigor"]
[Black "Janaszak, Dawid"]
[WhiteFideId "2907313"]
[BlackFideId "1119206"]
[WhiteElo "2510"]
[BlackElo "2199"]
[Result "1-0"]
[Round "02"]
[TimeControl "180+1"]
[Date "2022.02.15"]
[WhiteClock "0:01:14"]
[BlackClock "0:00:46"]

1. d4 {[%clk 0:03:00]}  Nf6 {[%clk 0:02:59]} 2. Nf3 {[%clk 0:03:01]}  g6 {[%clk 0:02:59]} 3. Bg5 {[%clk 0:03:00]}  Bg7 {[%clk 0:02:59]} 4. c3 {[%clk 0:03:00]}  O-O {[%clk 0:02:58]} 5. Nbd2 {[%clk 0:03:00]}  d5 {[%clk 0:02:58]} 6. e3 {[%clk 0:03:00]}  Ne4 {[%clk 0:02:54]} 7. Nxe4 {[%clk 0:02:56]}  dxe4 {[%clk 0:02:55]} 8. Nd2 {[%clk 0:02:57]}  f5 {[%clk 0:02:54]} 9. h4 {[%clk 0:02:49]}  h6 {[%clk 0:02:43]} 10. Bc4+ {[%clk 0:02:49]}  Kh7 {[%clk 0:02:39]} 11. h5 {[%clk 0:02:15]}  Qe8 {[%clk 0:02:01]} 12. hxg6+ {[%clk 0:02:15]}  Qxg6 {[%clk 0:02:02]} 13. Bxe7 {[%clk 0:02:16]}  Re8 {[%clk 0:01:45]} 14. Ba3 {[%clk 0:02:15]}  Qxg2 {[%clk 0:01:40]} 15. Qh5 {[%clk 0:02:14]}  Qg6 {[%clk 0:01:31]} 16. Qh2 {[%clk 0:02:14]}  Nc6 {[%clk 0:01:15]} 17. O-O-O {[%clk 0:02:14]}  Be6 {[%clk 0:01:13]} 18. d5 {[%clk 0:01:57]}  Bxd5 {[%clk 0:01:13]} 19. Bxd5 {[%clk 0:01:56]}  Ne5 {[%clk 0:01:14]} 20. Rdg1 {[%clk 0:01:47]}  Qa6 {[%clk 0:01:06]} 21. Qh5 {[%clk 0:01:31]}  Nd3+ {[%clk 0:01:00]} 22. Kb1 {[%clk 0:01:29]}  Re5 {[%clk 0:01:00]} 23. Bf7 {[%clk 0:01:21]}  Nxf2 {[%clk 0:00:52]} 24. Rg6 {[%clk 0:01:16]}  Qd3+ {[%clk 0:00:49]} 25. Ka1 {[%clk 0:01:14]}  Nxh1 {[%clk 0:00:49]} 26. Rxg7+ {[%clk 0:01:14]}  Kxg7 {[%clk 0:00:45]} 27. Qg6+ {[%clk 0:01:14]}  Kh8 {[%clk 0:00:46]} 28. Qxh6# {[%clk 0:01:14]} 1-0


[Site "https://www.chess.com"]

[Event "Titled Tuesday Blitz February 15 Late 2022"]
[White "Grischuk, Alexander"]
[Black "Saveliev, Alexei"]
[WhiteFideId "4126025"]
[BlackFideId "24128546"]
[WhiteElo "2762"]
[BlackElo "2281"]
[Result "1-0"]
[Round "02"]
[TimeControl "180+1"]
[Date "2022.02.15"]
[WhiteClock "0:00:26"]
[BlackClock "0:00:02"]

1. e4 {[%clk 0:03:00]}  g6 {[%clk 0:02:59]} 2. d4 {[%clk 0:03:00]}  Bg7 {[%clk 0:02:59]} 3. Nf3 {[%clk 0:03:01]}  d6 {[%clk 0:03:00]} 4. Bd3 {[%clk 0:03:02]}  Nc6 {[%clk 0:03:00]} 5. O-O {[%clk 0:03:01]}  e5 {[%clk 0:02:57]} 6. dxe5 {[%clk 0:03:00]}  Nxe5 {[%clk 0:02:54]} 7. Nxe5 {[%clk 0:03:00]}  dxe5 {[%clk 0:02:55]} 8. Bc4 {[%clk 0:03:00]}  Be6 {[%clk 0:02:35]} 9. Bxe6 {[%clk 0:02:58]}  fxe6 {[%clk 0:02:36]} 10. Qxd8+ {[%clk 0:02:40]}  Rxd8 {[%clk 0:02:37]} 11. a4 {[%clk 0:02:40]}  Ne7 {[%clk 0:02:29]} 12. Na3 {[%clk 0:02:37]}  Nc6 {[%clk 0:02:24]} 13. c3 {[%clk 0:02:32]}  a6 {[%clk 0:02:23]} 14. Bg5 {[%clk 0:02:31]}  Rd7 {[%clk 0:02:16]} 15. Rfd1 {[%clk 0:02:31]}  h6 {[%clk 0:02:16]} 16. Be3 {[%clk 0:02:31]}  Rxd1+ {[%clk 0:02:11]} 17. Rxd1 {[%clk 0:02:30]}  Ke7 {[%clk 0:02:02]} 18. Bc5+ {[%clk 0:02:26]}  Kf6 {[%clk 0:01:52]} 19. Kf1 {[%clk 0:02:12]}  Bf8 {[%clk 0:01:23]} 20. Bxf8 {[%clk 0:02:10]}  Rxf8 {[%clk 0:01:24]} 21. Ke2 {[%clk 0:02:04]}  Rd8 {[%clk 0:01:09]} 22. b4 {[%clk 0:01:48]}  Rxd1 {[%clk 0:01:02]} 23. Kxd1 {[%clk 0:01:49]}  Na7 {[%clk 0:00:46]} 24. Nc4 {[%clk 0:01:19]}  b5 {[%clk 0:00:42]} 25. Nb2 {[%clk 0:01:19]}  Ke7 {[%clk 0:00:38]} 26. a5 {[%clk 0:00:59]}  c5 {[%clk 0:00:11]} 27. Nd3 {[%clk 0:00:59]}  cxb4 {[%clk 0:00:10]} 28. cxb4 {[%clk 0:00:55]}  Nc6 {[%clk 0:00:10]} 29. Kd2 {[%clk 0:00:56]}  Kd6 {[%clk 0:00:06]} 30. Kc3 {[%clk 0:00:56]}  Ke7 {[%clk 0:00:03]} 31. Nc5 {[%clk 0:00:56]}  Nb8 {[%clk 0:00:04]} 32. Kd3 {[%clk 0:00:55]}  Kd6 {[%clk 0:00:03]} 33. Ke3 {[%clk 0:00:55]}  Ke7 {[%clk 0:00:03]} 34. Kf3 {[%clk 0:00:55]}  Kf6 {[%clk 0:00:04]} 35. Kg4 {[%clk 0:00:53]}  Ke7 {[%clk 0:00:04]} 36. g3 {[%clk 0:00:47]}  Kf6 {[%clk 0:00:05]} 37. f4 {[%clk 0:00:36]}  Ke7 {[%clk 0:00:02]} 38. h4 {[%clk 0:00:34]}  Kf6 {[%clk 0:00:02]} 39. h5 {[%clk 0:00:35]}  g5 {[%clk 0:00:02]} 40. f5 {[%clk 0:00:26]} 1-0


[Site "https://www.chess.com"]

[Event "Titled Tuesday Blitz February 15 Late 2022"]
[White "Hakemi, Arman"]
[Black "Svane, Rasmus"]
[WhiteFideId "22520805"]
[BlackFideId "4657101"]
[WhiteElo "2208"]
[BlackElo "2645"]
[Result "0-1"]
[Round "02"]
[TimeControl "180+1"]
[Date "2022.02.15"]
[WhiteClock "0:00:10"]
[BlackClock "0:00:42"]

1. e4 {[%clk 0:03:00]}  c6 {[%clk 0:03:00]} 2. d4 {[%clk 0:03:00]}  d5 {[%clk 0:03:01]} 3. e5 {[%clk 0:02:59]}  Bf5 {[%clk 0:03:01]} 4. Nf3 {[%clk 0:03:00]}  e6 {[%clk 0:03:01]} 5. Be2 {[%clk 0:03:00]}  Ne7 {[%clk 0:03:01]} 6. O-O {[%clk 0:02:59]}  Ng6 {[%clk 0:03:01]} 7. Be3 {[%clk 0:02:51]}  Nd7 {[%clk 0:03:01]} 8. Ne1 {[%clk 0:02:49]}  h5 {[%clk 0:02:59]} 9. c3 {[%clk 0:02:49]}  f6 {[%clk 0:02:56]} 10. f4 {[%clk 0:02:44]}  h4 {[%clk 0:02:53]} 11. Qd2 {[%clk 0:02:28]}  Qb6 {[%clk 0:02:43]} 12. a4 {[%clk 0:02:28]}  c5 {[%clk 0:02:30]} 13. a5 {[%clk 0:02:26]}  Qc7 {[%clk 0:02:30]} 14. a6 {[%clk 0:02:26]}  b6 {[%clk 0:02:31]} 15. Bb5 {[%clk 0:02:26]}  Rc8 {[%clk 0:02:27]} 16. Na3 {[%clk 0:02:24]}  Kf7 {[%clk 0:02:25]} 17. Be2 {[%clk 0:02:22]}  Nb8 {[%clk 0:02:18]} 18. Nb5 {[%clk 0:02:21]}  Qd7 {[%clk 0:02:18]} 19. g4 {[%clk 0:02:12]}  hxg3 {[%clk 0:02:17]} 20. hxg3 {[%clk 0:02:13]}  c4 {[%clk 0:02:17]} 21. Na3 {[%clk 0:02:05]}  Rh7 {[%clk 0:01:56]} 22. Ng2 {[%clk 0:01:58]}  Bxa3 {[%clk 0:01:55]} 23. Rxa3 {[%clk 0:01:51]}  Rch8 {[%clk 0:01:55]} 24. Kf2 {[%clk 0:01:43]}  Rh2 {[%clk 0:01:48]} 25. Bf3 {[%clk 0:01:36]}  Bd3 {[%clk 0:01:45]} 26. Rg1 {[%clk 0:01:35]}  Nc6 {[%clk 0:01:44]} 27. b4 {[%clk 0:01:32]}  Nce7 {[%clk 0:01:38]} 28. Qd1 {[%clk 0:00:41]}  Nf5 {[%clk 0:01:33]} 29. Bd2 {[%clk 0:00:42]}  R8h3 {[%clk 0:01:28]} 30. Bg4 {[%clk 0:00:40]}  Rh7 {[%clk 0:01:15]} 31. Ra1 {[%clk 0:00:36]}  Qe8 {[%clk 0:01:14]} 32. Qa4 {[%clk 0:00:32]}  Qc8 {[%clk 0:01:00]} 33. Rae1 {[%clk 0:00:29]}  Be4 {[%clk 0:00:56]} 34. Bf3 {[%clk 0:00:29]}  Bxf3 {[%clk 0:00:54]} 35. Kxf3 {[%clk 0:00:30]}  Nge7 {[%clk 0:00:55]} 36. Re2 {[%clk 0:00:28]}  R7h3 {[%clk 0:00:54]} 37. Be1 {[%clk 0:00:28]}  Qh8 {[%clk 0:00:51]} 38. Ne3 {[%clk 0:00:12]}  Nh4+ {[%clk 0:00:42]} 39. Kg4 {[%clk 0:00:10]}  f5+ {[%clk 0:00:42]} 40. Kg5 {[%clk 0:00:10]}  Qh6# {[%clk 0:00:42]} 0-1


[Site "https://www.chess.com"]

[Event "Titled Tuesday Blitz February 15 Late 2022"]
[White "Hamley, Ryan"]
[Black "Pinheiro, Iung Alicio de O."]
[WhiteFideId "30959497"]
[BlackFideId "2104350"]
[WhiteElo "2382"]
[BlackElo "2639"]
[Result "1-0"]
[Round "02"]
[TimeControl "180+1"]
[Date "2022.02.16"]
[WhiteClock "0:00:39"]
[BlackClock "0:00:13"]

1. e4 {[%clk 0:03:00]}  c5 {[%clk 0:02:59]} 2. Nf3 {[%clk 0:03:00]}  Nc6 {[%clk 0:02:56]} 3. Bb5 {[%clk 0:02:59]}  e6 {[%clk 0:02:55]} 4. O-O {[%clk 0:02:59]}  Nge7 {[%clk 0:02:55]} 5. Re1 {[%clk 0:02:59]}  a6 {[%clk 0:02:54]} 6. Bf1 {[%clk 0:02:58]}  d5 {[%clk 0:02:48]} 7. exd5 {[%clk 0:02:57]}  Nxd5 {[%clk 0:02:47]} 8. d4 {[%clk 0:02:50]}  Nf6 {[%clk 0:02:44]} 9. Be3 {[%clk 0:02:48]}  Qa5 {[%clk 0:02:27]} 10. c3 {[%clk 0:02:43]}  cxd4 {[%clk 0:02:15]} 11. Nxd4 {[%clk 0:02:43]}  Bd7 {[%clk 0:02:08]} 12. Nd2 {[%clk 0:02:41]}  Be7 {[%clk 0:02:02]} 13. Nc4 {[%clk 0:02:40]}  Qc7 {[%clk 0:02:02]} 14. Qf3 {[%clk 0:02:26]}  Nxd4 {[%clk 0:01:57]} 15. Bxd4 {[%clk 0:02:26]}  Bc6 {[%clk 0:01:58]} 16. Qe3 {[%clk 0:02:16]}  Nd5 {[%clk 0:01:48]} 17. Qg3 {[%clk 0:02:05]}  Qxg3 {[%clk 0:01:45]} 18. hxg3 {[%clk 0:02:06]}  O-O {[%clk 0:01:34]} 19. Ne5 {[%clk 0:02:06]}  Rfc8 {[%clk 0:01:26]} 20. Nxc6 {[%clk 0:02:04]}  Rxc6 {[%clk 0:01:27]} 21. Rad1 {[%clk 0:02:04]}  b5 {[%clk 0:01:23]} 22. Be2 {[%clk 0:01:58]}  Rd8 {[%clk 0:01:17]} 23. Bf3 {[%clk 0:01:57]}  Rcc8 {[%clk 0:01:18]} 24. Kf1 {[%clk 0:01:51]}  a5 {[%clk 0:01:13]} 25. Rd3 {[%clk 0:01:33]}  a4 {[%clk 0:01:13]} 26. a3 {[%clk 0:01:32]}  Kf8 {[%clk 0:01:05]} 27. Red1 {[%clk 0:01:31]}  Rd7 {[%clk 0:00:56]} 28. Bb6 {[%clk 0:01:06]}  Bd8 {[%clk 0:00:35]} 29. Bxd5 {[%clk 0:00:53]}  exd5 {[%clk 0:00:26]} 30. Be3 {[%clk 0:00:50]}  Bf6 {[%clk 0:00:14]} 31. Rxd5 {[%clk 0:00:49]}  Rxd5 {[%clk 0:00:14]} 32. Rxd5 {[%clk 0:00:50]}  Rb8 {[%clk 0:00:15]} 33. Rd7 {[%clk 0:00:45]}  Ke8 {[%clk 0:00:15]} 34. Ra7 {[%clk 0:00:42]}  g5 {[%clk 0:00:15]} 35. Ke2 {[%clk 0:00:42]}  h5 {[%clk 0:00:15]} 36. Ra6 {[%clk 0:00:42]}  Ke7 {[%clk 0:00:15]} 37. Ra7+ {[%clk 0:00:42]}  Ke6 {[%clk 0:00:15]} 38. Rc7 {[%clk 0:00:40]}  g4 {[%clk 0:00:14]} 39. Rc5 {[%clk 0:00:39]}  Be5 {[%clk 0:00:13]} 40. Rxe5+ {[%clk 0:00:39]} 1-0


[Site "https://www.chess.com"]

[Event "Titled Tuesday Blitz February 15 Late 2022"]
[White "Dronavalli, Harika"]
[Black "Sviridov, Valery"]
[WhiteFideId "5015197"]
[BlackFideId "4120680"]
[WhiteElo "2382"]
[BlackElo "2454"]
[Result "1-0"]
[Round "02"]
[TimeControl "180+1"]
[Date "2022.02.15"]
[WhiteClock "0:01:44"]
[BlackClock "0:01:50"]

1. d4 {[%clk 0:02:58]}  g6 {[%clk 0:02:56]} 2. e4 {[%clk 0:02:56]}  Bg7 {[%clk 0:02:56]} 3. Nf3 {[%clk 0:02:56]}  d6 {[%clk 0:02:57]} 4. Bd3 {[%clk 0:02:56]}  e6 {[%clk 0:02:54]} 5. O-O {[%clk 0:02:53]}  b6 {[%clk 0:02:55]} 6. c3 {[%clk 0:02:53]}  Bb7 {[%clk 0:02:55]} 7. Re1 {[%clk 0:02:53]}  Nd7 {[%clk 0:02:56]} 8. Nbd2 {[%clk 0:02:53]}  Ne7 {[%clk 0:02:56]} 9. Nf1 {[%clk 0:02:53]}  h6 {[%clk 0:02:56]} 10. Be3 {[%clk 0:02:52]}  O-O {[%clk 0:02:55]} 11. Qd2 {[%clk 0:02:53]}  Kh7 {[%clk 0:02:55]} 12. Rad1 {[%clk 0:02:52]}  f5 {[%clk 0:02:55]} 13. exf5 {[%clk 0:02:43]}  Nxf5 {[%clk 0:02:56]} 14. Bxf5 {[%clk 0:02:35]}  Rxf5 {[%clk 0:02:47]} 15. Ng3 {[%clk 0:02:29]}  Rxf3 {[%clk 0:02:44]} 16. gxf3 {[%clk 0:02:29]}  Bxf3 {[%clk 0:02:45]} 17. Bf4 {[%clk 0:02:22]}  Bxd1 {[%clk 0:02:43]} 18. Qxd1 {[%clk 0:02:21]}  Qf6 {[%clk 0:02:42]} 19. Qg4 {[%clk 0:02:15]}  Re8 {[%clk 0:02:39]} 20. h4 {[%clk 0:02:04]}  h5 {[%clk 0:02:37]} 21. Nxh5 {[%clk 0:02:04]}  Qf5 {[%clk 0:02:21]} 22. Qxf5 {[%clk 0:02:02]}  gxf5 {[%clk 0:02:22]} 23. Bg5 {[%clk 0:01:59]}  Kg6 {[%clk 0:01:57]} 24. Nf4+ {[%clk 0:01:47]}  Kf7 {[%clk 0:01:58]} 25. d5 {[%clk 0:01:43]}  e5 {[%clk 0:01:58]} 26. Ne6 {[%clk 0:01:43]}  Rc8 {[%clk 0:01:54]} 27. Nd8+ {[%clk 0:01:44]}  Kg6 {[%clk 0:01:51]} 28. Nc6 {[%clk 0:01:44]}  a5 {[%clk 0:01:50]} 29. Ne7+ {[%clk 0:01:44]} 1-0


[Site "https://www.chess.com"]

[Event "Titled Tuesday Blitz February 15 Late 2022"]
[White "Hoffmann, Asa"]
[Black "Domingo Nunez, Alejandro"]
[WhiteFideId "2001470"]
[BlackFideId "22245561"]
[WhiteElo "2117"]
[BlackElo "2215"]
[Result "0-1"]
[Round "02"]
[TimeControl "180+1"]
[Date "2022.02.16"]
[WhiteClock "0:01:09"]
[BlackClock "0:02:17"]

1. d4 {[%clk 0:02:51]}  Nf6 {[%clk 0:02:58]} 2. Bg5 {[%clk 0:02:50]}  e6 {[%clk 0:02:56]} 3. Nd2 {[%clk 0:02:49]}  c5 {[%clk 0:02:55]} 4. e3 {[%clk 0:02:45]}  b6 {[%clk 0:02:55]} 5. c3 {[%clk 0:02:40]}  Bb7 {[%clk 0:02:55]} 6. Ngf3 {[%clk 0:02:40]}  Be7 {[%clk 0:02:55]} 7. Bd3 {[%clk 0:02:39]}  O-O {[%clk 0:02:55]} 8. O-O {[%clk 0:02:39]}  Nc6 {[%clk 0:02:55]} 9. Qe2 {[%clk 0:02:34]}  d6 {[%clk 0:02:48]} 10. h3 {[%clk 0:02:33]}  Nd5 {[%clk 0:02:47]} 11. Bxe7 {[%clk 0:02:28]}  Qxe7 {[%clk 0:02:46]} 12. a3 {[%clk 0:02:27]}  Rac8 {[%clk 0:02:39]} 13. Ba6 {[%clk 0:02:22]}  e5 {[%clk 0:02:36]} 14. Bxb7 {[%clk 0:02:15]}  Qxb7 {[%clk 0:02:37]} 15. c4 {[%clk 0:02:15]}  Nf6 {[%clk 0:02:36]} 16. d5 {[%clk 0:02:15]}  Ne7 {[%clk 0:02:35]} 17. e4 {[%clk 0:02:14]}  Nh5 {[%clk 0:02:32]} 18. g3 {[%clk 0:02:09]}  g6 {[%clk 0:02:30]} 19. Nh4 {[%clk 0:02:03]}  Qd7 {[%clk 0:02:29]} 20. Kg2 {[%clk 0:02:02]}  f5 {[%clk 0:02:29]} 21. exf5 {[%clk 0:01:58]}  Nxf5 {[%clk 0:02:29]} 22. Nxf5 {[%clk 0:01:57]}  Rxf5 {[%clk 0:02:29]} 23. Ne4 {[%clk 0:01:54]}  Rcf8 {[%clk 0:02:29]} 24. b4 {[%clk 0:01:50]}  Rf3 {[%clk 0:02:26]} 25. bxc5 {[%clk 0:01:37]}  Nf4+ {[%clk 0:02:26]} 26. gxf4 {[%clk 0:01:33]}  Qxh3+ {[%clk 0:02:26]} 27. Kg1 {[%clk 0:01:33]}  R8xf4 {[%clk 0:02:26]} 28. Qxf3 {[%clk 0:01:15]}  Qxf3 {[%clk 0:02:20]} 29. Ng3 {[%clk 0:01:14]}  bxc5 {[%clk 0:02:19]} 30. Rab1 {[%clk 0:01:11]}  h5 {[%clk 0:02:18]} 31. Rb8+ {[%clk 0:01:10]}  Kg7 {[%clk 0:02:17]} 32. Rd8 {[%clk 0:01:09]}  h4 {[%clk 0:02:17]} 0-1


[Site "https://www.chess.com"]

[Event "Titled Tuesday Blitz February 15 Late 2022"]
[White "Horak, Martin"]
[Black "Sanal, Vahap"]
[WhiteFideId "367095"]
[BlackFideId "6300545"]
[WhiteElo "1997"]
[BlackElo "2603"]
[Result "0-1"]
[Round "02"]
[TimeControl "180+1"]
[Date "2022.02.16"]
[WhiteClock "0:00:03"]
[BlackClock "0:00:46"]

1. d4 {[%clk 0:03:00]}  Nf6 {[%clk 0:02:57]} 2. c4 {[%clk 0:03:00]}  g6 {[%clk 0:02:57]} 3. g3 {[%clk 0:02:59]}  Bg7 {[%clk 0:02:57]} 4. Bg2 {[%clk 0:02:59]}  d6 {[%clk 0:02:57]} 5. Nc3 {[%clk 0:03:00]}  O-O {[%clk 0:02:57]} 6. Nf3 {[%clk 0:03:00]}  Nc6 {[%clk 0:02:57]} 7. O-O {[%clk 0:03:01]}  a6 {[%clk 0:02:57]} 8. b3 {[%clk 0:02:38]}  Rb8 {[%clk 0:02:56]} 9. Bd2 {[%clk 0:02:26]}  Bd7 {[%clk 0:02:38]} 10. d5 {[%clk 0:02:24]}  Na7 {[%clk 0:02:35]} 11. Be3 {[%clk 0:02:19]}  c5 {[%clk 0:02:34]} 12. dxc6 {[%clk 0:02:18]}  Nxc6 {[%clk 0:02:34]} 13. h3 {[%clk 0:01:58]}  b5 {[%clk 0:02:25]} 14. cxb5 {[%clk 0:01:38]}  axb5 {[%clk 0:02:26]} 15. Nd4 {[%clk 0:01:35]}  Nxd4 {[%clk 0:02:16]} 16. Bxd4 {[%clk 0:01:35]}  Qc8 {[%clk 0:02:17]} 17. Kh2 {[%clk 0:01:30]}  e5 {[%clk 0:02:16]} 18. Ba7 {[%clk 0:01:11]}  Qxc3 {[%clk 0:02:09]} 19. Bxb8 {[%clk 0:01:10]}  Rxb8 {[%clk 0:02:10]} 20. Qxd6 {[%clk 0:01:05]}  Re8 {[%clk 0:02:05]} 21. a4 {[%clk 0:00:47]}  bxa4 {[%clk 0:02:04]} 22. bxa4 {[%clk 0:00:47]}  h5 {[%clk 0:01:51]} 23. a5 {[%clk 0:00:37]}  h4 {[%clk 0:01:51]} 24. g4 {[%clk 0:00:37]}  Qc4 {[%clk 0:01:26]} 25. e3 {[%clk 0:00:34]}  e4 {[%clk 0:01:03]} 26. a6 {[%clk 0:00:28]}  Nxg4+ {[%clk 0:01:01]} 27. hxg4 {[%clk 0:00:28]}  Be5+ {[%clk 0:00:59]} 28. Qxe5 {[%clk 0:00:23]}  Rxe5 {[%clk 0:01:00]} 29. a7 {[%clk 0:00:22]}  Re8 {[%clk 0:00:54]} 30. a8=Q {[%clk 0:00:21]}  Rxa8 {[%clk 0:00:52]} 31. Rxa8+ {[%clk 0:00:22]}  Kg7 {[%clk 0:00:53]} 32. Rd1 {[%clk 0:00:18]}  Bxg4 {[%clk 0:00:51]} 33. Rd4 {[%clk 0:00:17]}  Qc7+ {[%clk 0:00:51]} 34. Kg1 {[%clk 0:00:06]}  h3 {[%clk 0:00:51]} 35. Bxe4 {[%clk 0:00:06]}  Qc1+ {[%clk 0:00:48]} 36. Kh2 {[%clk 0:00:05]}  Qf1 {[%clk 0:00:49]} 37. Rd2 {[%clk 0:00:04]}  Qc4 {[%clk 0:00:46]} 38. Bh1 {[%clk 0:00:03]}  Qc7+ {[%clk 0:00:46]} 39. Kg1 {[%clk 0:00:03]}  Qc1+ {[%clk 0:00:46]} 0-1


[Site "https://www.chess.com"]